bitfinex-derivatives/quotes_ETHF0:USTF0_20250621
["timestamp","ask_amount","ask_price","bid_price","bid_amount"]
[1750524302024,2.06752,2417.9,2417.3,3.2078]
[1750524302224,2.59309171,2417.5,2417.3,4.03499]
[1750524302532,2.90147,2417.4,2417.3,3.2078]
[1750524302731,3.59857,2417.4,2417.3,3.2078]
[1750524303924,5.9792,2417.4,2416.9,3.30367332]
[1750524304225,0.82734,2416.9,2416.8,0.82737]
[1750524304427,0.82738,2416.8,2416.7,4.0352]
[1750524304726,0.82737,2416.9,2416.7,4.0352]
[1750524305133,0.82737,2416.9,2416.8,0.82738]
[1750524305434,0.82738,2416.8,2416.7,3.2078]
[1750524305629,0.82736,2416.9,2416.7,4.03521]
[1750524306426,1.52043,2417.0,2416.8,0.82738]
[1750524306626,0.6931,2417.0,2416.9,0.82734]
[1750524306828,6.503,2417.1,2416.7,5.80089171]
[1750524307032,10.4079,2417.4,2417.0,3.2078]
[1750524307229,10.53797,2417.4,2417.2,0.82723]
[1750524307435,9.7108,2417.4,2417.3,0.82721]
[1750524307734,9.7108,2417.4,2417.3,0.89568599]
[1750524307928,10.53797,2417.4,2417.3,0.06847599]
[1750524308237,6.503,2417.4,2417.3,0.89568599]
[1750524308436,15.53797,2417.4,2417.3,5.99e-06]
[1750524308731,18.0288893,2417.4,2417.3,5.99e-06]
[1750524310134,13.0288893,2417.4,2417.3,5.99e-06]
[1750524311235,11.94707,2417.4,2417.3,5.99e-06]
[1750524312431,8.73927,2417.4,2417.3,5.99e-06]
[1750524313637,7.33017,2417.4,2417.3,5.99e-06]
[1750524314834,0.82717,2417.4,2417.3,5.99e-06]
[1750524317228,2.15737,2417.4,2417.3,5.99e-06]
[1750524323847,0.82717,2417.4,2417.3,5.99e-06]
[1750524326341,1.91013915,2417.4,2417.3,5.99e-06]
[1750524329939,1.08296915,2417.4,2417.3,0.82721599]
[1750524330148,26.6882,2417.9,2417.5,0.82713]
[1750524330342,0.82708,2417.7,2417.5,0.82711]
[1750524330548,0.82708,2417.7,2417.5,0.82714]
[1750524330752,0.8271,2417.6,2417.5,2.13964]
[1750524331151,0.8271,2417.6,2417.5,0.82714]
[1750524331459,0.82714,2417.5,2417.4,1.3146]
[1750524331746,0.82717,2417.4,2417.3,7.38621599]
[1750524331946,0.82717,2417.4,2417.3,6.55900599]
[1750524332750,0.82717,2417.4,2417.3,7.38621599]
[1750524333362,0.82717,2417.4,2417.3,6.55900599]
[1750524333860,0.82717,2417.4,2417.3,5.99e-06]
[1750524334161,0.82717,2417.4,2417.3,0.82721599]
[1750524334458,1.53125,2417.5,2417.4,0.82717]
[1750524334761,0.7041,2417.5,2417.4,0.82717]
[1750524335450,1.53125,2417.5,2417.3,4.03498599]
[1750524335757,0.82713,2417.6,2417.4,0.82715]
[1750524336254,0.82714,2417.5,2417.4,0.82715]
[1750524336450,0.82714,2417.5,2417.4,0.82717]
[1750524336759,0.82713,2417.6,2417.4,0.82717]
[1750524336955,3.23959171,2417.7,2417.3,4.03500599]
[1750524337157,0.82716,2417.5,2417.3,4.03497599]
[1750524337356,0.82717,2417.4,2417.3,4.03497599]
[1750524337855,0.82716,2417.5,2417.4,0.82717]
[1750524338457,0.82716,2417.5,2417.3,4.03498599]
[1750524338962,0.82717,2417.4,2417.3,3.20780599]
[1750524339465,0.82717,2417.4,2417.3,4.03501599]
[1750524340472,0.82716,2417.5,2417.4,0.82717]
[1750524340660,0.82717,2417.4,2417.3,4.03498599]
[1750524340862,1.3002,2417.6,2417.4,0.82717]
[1750524341162,0.82714,2417.6,2417.4,0.82717]
[1750524341767,0.82714,2417.5,2417.4,0.82717]
[1750524341968,0.82713,2417.6,2417.5,0.82714]
[1750524342859,0.82713,2417.6,2417.3,3.20780599]
[1750524342860,1.47359,2417.7,2417.6,0.8271]
[1750524343065,0.8271,2417.6,2417.5,0.82711]
[1750524343974,1.47359,2417.7,2417.5,0.82711]
[1750524344175,5.27525,2418.0,2417.6,2.59309171]
[1750524344176,3.2078,2418.0,2417.6,2.59309171]
[1750524344472,4.03478,2418.0,2417.8,0.82702]
[1750524344772,0.827,2417.9,2417.7,0.82705]
[1750524344973,0.82705,2417.8,2417.6,2.17589]
[1750524345171,0.82701,2417.9,2417.6,1.3488]
[1750524345357,0.82701,2417.9,2417.8,0.82703]
[1750524345757,0.82701,2417.9,2417.7,0.82704]
[1750524345970,0.82701,2417.9,2417.8,0.82703]
[1750524346670,2.59309171,2418.0,2417.8,0.82703]
[1750524346671,0.82699,2418.0,2417.8,0.82703]
[1750524346867,0.7112,2418.1,2417.8,0.82703]
[1750524347069,0.82697,2418.0,2417.8,0.82703]
[1750524347470,0.827,2417.9,2417.8,0.82703]
[1750524348065,0.7112,2418.1,2417.6,4.5566]
[1750524348271,1.53814,2418.1,2418.0,0.82697]
[1750524348771,1.53813,2418.1,2417.9,4.03478]
[1750524349369,1.53813,2418.1,2418.0,0.82697]
[1750524349968,1.53813,2418.1,2417.9,4.03478]
[1750524350460,1.53813,2418.1,2418.0,0.82697]
[1750524350660,0.7112,2418.1,2418.0,0.82697]
[1750524350864,0.82691,2418.2,2417.9,3.2078]
[1750524351065,1.49591,2418.2,2418.0,0.6827]
[1750524351566,1.49591,2418.2,2418.1,0.82693]
[1750524351867,0.82693,2418.1,2418.0,1.50964]
[1750524352267,1.49592,2418.2,2418.0,1.50964]
[1750524352671,0.82693,2418.1,2418.0,1.50964]
[1750524352872,0.82693,2418.1,2418.0,0.82694]
[1750524353172,1.49592,2418.2,2418.1,0.82693]
[1750524353372,1.49592,2418.2,2418.0,0.82694]
[1750524353775,0.82693,2418.1,2418.0,0.82694]
[1750524354075,0.82697,2418.0,2417.9,4.03478]
[1750524354269,0.82697,2418.0,2417.9,3.2078]
[1750524354862,0.82697,2418.0,2417.9,4.0348]
[1750524355675,0.82695,2418.1,2418.0,0.82696]
[1750524355873,0.82695,2418.1,2417.9,4.03478]
[1750524356074,0.82695,2418.1,2418.0,0.82697]
[1750524357977,0.82695,2418.1,2417.9,3.2078]
[1750524357978,0.82697,2418.0,2417.9,4.03477]
[1750524358677,0.82696,2418.1,2418.0,0.82696]
[1750524358874,0.82697,2418.0,2417.9,4.03477]
[1750524359578,0.82695,2418.1,2418.0,0.82696]
[1750524360478,3.2078,2418.6,2418.2,0.82686]
[1750524360667,0.82689,2418.3,2418.2,3.2078]
[1750524360976,0.82693,2418.2,2418.0,0.82695]
[1750524361176,1.47753,2418.2,2418.0,0.82695]
[1750524361372,0.82693,2418.1,2418.0,0.82695]
[1750524361777,1.47752,2418.2,2418.0,0.82695]
[1750524361977,0.82693,2418.1,2418.0,0.82695]
[1750524362178,1.47751,2418.2,2418.0,0.82695]
[1750524362379,1.47751,2418.2,2418.1,0.82693]
[1750524362974,0.6506,2418.2,2418.1,0.82693]
[1750524363175,2.18444,2418.4,2418.3,0.82685]
[1750524363176,0.82684,2418.4,2418.3,0.82685]
[1750524363372,0.7078,2418.6,2418.2,3.2078]
[1750524363669,0.7078,2418.6,2418.5,0.8268]
[1750524364075,1.53456,2418.6,2418.5,0.8268]
[1750524364677,1.53456,2418.6,2418.4,0.82681]
[1750524364882,0.8268,2418.5,2418.4,0.82683]
[1750524366981,1.53457,2418.6,2418.5,0.8268]
[1750524367280,0.8268,2418.5,2418.3,0.6906]
[1750524368086,0.8268,2418.5,2418.3,1.51745]
[1750524368382,0.82683,2418.4,2418.3,1.51745]
[1750524369485,0.82682,2418.5,2418.3,1.51745]
[1750524369789,0.82686,2418.3,2418.2,3.2078]
[1750524369982,0.8269,2418.2,2418.1,7.44338599]
[1750524370182,1.4985,2418.2,2418.1,7.44338599]
[1750524370386,0.6716,2418.2,2418.1,7.44338599]
[1750524370690,2.16925,2418.4,2418.3,0.82686]
[1750524370881,2.84085,2418.4,2418.3,0.82686]
[1750524371185,2.84085,2418.4,2418.2,4.03468]
[1750524371674,0.82686,2418.3,2418.2,3.2078]
[1750524371870,2.014,2418.4,2418.3,0.82686]
[1750524372274,0.6716,2418.4,2418.2,3.2078]
[1750524372483,0.6716,2418.4,2418.3,0.82686]
[1750524373481,1.49845,2418.4,2418.3,0.82686]
[1750524373687,0.82686,2418.3,2418.2,4.03469]
[1750524374281,1.49846,2418.4,2418.3,0.82686]
[1750524374882,0.7062,2418.8,2418.2,3.2078]
[1750524375082,1.49838,2418.6,2418.4,0.8268]
[1750524375284,1.49837,2418.6,2418.5,0.8268]
[1750524376287,1.49837,2418.6,2418.4,0.8268]
[1750524377086,0.6716,2418.6,2418.4,0.82681]
[1750524377388,0.8268,2418.5,2418.4,0.82681]
[1750524377587,0.82683,2418.4,2418.3,0.82684]
[1750524377886,2.59309171,2418.5,2418.1,6.61647599]
[1750524378088,0.82686,2418.3,2418.2,0.82687]
[1750524378588,1.49706,2418.3,2418.2,0.82687]
[1750524380082,1.49706,2418.3,2418.1,0.89538599]
[1750524380282,0.6612,2418.2,2418.1,0.89538599]
[1750524382180,1.4881,2418.2,2418.1,0.89540599]
[1750524382386,1.4881,2418.2,2418.1,0.06847599]
[1750524382587,2.8504,2418.2,2418.1,0.06847599]
[1750524383393,2.8504,2418.2,2418.1,0.89540599]
[1750524384387,2.8504,2418.2,2418.1,0.06847599]
[1750524384595,6.0582,2418.2,2418.1,0.06847599]
[1750524384985,7.14569005,2418.2,2418.1,0.06847599]
[1750524385385,13.68769005,2418.2,2418.1,0.06847599]
[1750524385586,13.68769353,2418.2,2418.1,0.06847599]
[1750524386096,12.6002,2418.2,2418.1,0.06847599]
[1750524387287,13.68777166,2418.2,2418.1,0.06847599]
[1750524387488,12.6002,2418.2,2418.1,0.06847599]
[1750524388394,13.68766132,2418.2,2418.1,0.06847599]
[1750524389998,18.68766132,2418.2,2418.1,0.06847599]
[1750524390391,13.68766132,2418.2,2418.1,0.06847599]
[1750524397903,10.47986132,2418.2,2418.1,0.06847599]
[1750524399305,8.0301,2418.2,2418.1,0.06847599]
[1750524400199,11.94349171,2418.2,2418.1,0.06847599]
[1750524404604,5.67704083,2418.8,2418.1,8.27627599]
[1750524404808,5.67704083,2418.8,2418.2,1.3868]
[1750524404809,3.2078,2418.8,2418.2,1.3868]
[1750524405005,0.82674,2418.7,2418.3,0.82684]
[1750524405201,0.82674,2418.7,2418.3,2.16674]
[1750524405396,4.03452,2418.8,2418.4,0.82682]
[1750524405602,0.82673,2418.7,2418.4,0.82682]
[1750524406006,3.2078,2418.8,2418.5,0.82679]
[1750524406413,3.2078,2418.8,2418.6,1.46996]
[1750524406705,3.2078,2418.8,2418.6,0.6432]
[1750524406906,4.0345,2418.8,2418.6,0.6432]
[1750524409007,2.59309171,2418.7,2418.3,7.8819]
[1750524409215,2.59309171,2418.7,2418.4,0.6799]
[1750524409412,0.82678,2418.6,2418.4,0.6799]
[1750524410312,3.41984171,2418.7,2418.4,0.6799]
[1750524410807,3.41984171,2418.7,2418.4,1.50672]
[1750524411010,2.59309171,2418.7,2418.4,1.50672]
[1750524411212,3.2078,2418.8,2418.6,0.06847599]
[1750524411414,3.2078,2418.8,2418.6,0.89522599]
[1750524412212,4.11626171,2418.9,2418.6,0.89522599]
[1750524412608,3.28959171,2418.9,2418.6,0.06847599]
[1750524413009,3.28959171,2418.9,2418.6,0.89521599]
[1750524413208,3.28959171,2418.9,2418.7,0.82672]
[1750524414309,13.84730171,2419.1,2418.8,0.82668]
[1750524414506,0.82663,2419.0,2418.7,0.6707]
[1750524414706,13.82889171,2419.1,2418.7,1.49741]
[1750524414907,13.82889171,2419.1,2418.8,0.7078]
[1750524415112,10.62109171,2419.1,2418.8,0.7078]
[1750524416020,0.82663,2419.0,2418.8,0.7078]
[1750524417120,0.82666,2418.9,2418.8,0.7078]
[1750524417312,2.59309171,2418.9,2418.7,0.6707]
[1750524417617,2.59309171,2418.9,2418.7,1.49743]
[1750524418218,13.00229171,2419.1,2418.8,0.82669]
[1750524418819,13.00229171,2419.1,2418.8,0.82667]
[1750524420121,13.00229171,2419.1,2418.9,0.82665]
[1750524420521,10.4092,2419.1,2418.9,0.82663]
[1750524420717,10.4092,2419.1,2419.0,0.82662]
[1750524420921,9.8058,2419.4,2419.2,0.82655]
[1750524421219,10.4908,2419.4,2418.8,9.26590171]
[1750524421521,10.4908,2419.4,2419.2,0.82654]
[1750524422517,10.4908,2419.4,2419.1,0.82657]
[1750524422716,10.4908,2419.4,2419.2,0.82656]
[1750524423119,3.8928,2419.4,2419.0,0.6475]
[1750524423326,3.2078,2419.4,2419.0,2.71401]
[1750524423627,9.8048,2419.8,2419.5,0.82645]
[1750524424117,10.4593,2419.8,2419.5,0.82645]
[1750524425615,10.4593,2419.8,2419.5,0.82643]
[1750524425817,11.28568,2419.8,2419.4,1.47067]
[1750524426018,3.8623,2419.8,2419.5,0.82645]
[1750524426218,4.68866,2419.8,2419.4,1.47067]
[1750524426514,3.8623,2419.8,2419.4,1.47067]
[1750524426718,5.2474,2419.8,2419.5,0.82644]
[1750524426920,5.2474,2419.8,2419.6,0.82642]
[1750524427221,3.8623,2419.8,2419.7,0.82639]
[1750524427420,3.2078,2419.8,2419.7,0.82639]
[1750524427622,0.6723,2419.9,2419.7,0.82639]
[1750524428624,0.6723,2419.9,2419.6,0.82639]
[1750524429026,1.9835,2419.9,2419.6,0.82639]
[1750524429228,1.9835,2419.9,2419.7,0.82638]
[1750524429918,1.9835,2419.9,2419.5,3.2078]
[1750524430124,1.9835,2419.9,2419.7,0.82637]
[1750524431122,1.9835,2419.9,2419.8,0.82635]
[1750524431625,0.6723,2419.9,2419.8,0.82635]
[1750524432020,9.8048,2420.1,2419.5,5.27391]
[1750524432021,3.2078,2420.1,2420.0,0.82628]
[1750524432220,1.31,2420.2,2420.0,0.82627]
[1750524432824,1.31,2420.2,2420.1,0.82625]
[1750524433424,1.31,2420.2,2420.0,0.82626]
[1750524434731,1.31,2420.2,2419.8,5.9298]
[1750524434925,0.6473,2420.2,2420.1,4.03405]
[1750524435319,6.596,2420.4,2420.2,0.8262]
[1750524435524,0.6772,2420.3,2420.2,0.8262]
[1750524435721,0.6772,2420.3,2420.2,0.82621]
[1750524437028,2.59309171,2420.4,2420.1,3.2078]
[1750524437232,2.0425,2420.2,2420.1,3.2078]
[1750524437420,2.0425,2420.2,2420.1,4.03405]
[1750524439133,0.6457,2420.2,2420.1,4.03405]
[1750524440736,0.6457,2420.2,2420.1,4.10252599]
[1750524442938,0.6457,2420.2,2420.1,3.27627599]
[1750524443144,0.6457,2420.2,2420.1,4.10252599]
[1750524444730,0.6535,2420.5,2420.4,0.82615]
[1750524445138,0.6946,2420.6,2420.5,0.82611]
[1750524445537,0.6946,2420.6,2420.4,0.82612]
[1750524445737,0.6946,2420.6,2420.5,0.82611]
[1750524445936,0.6946,2420.6,2420.4,0.82612]
[1750524446136,1.9974,2420.6,2420.3,0.82616]
[1750524446439,1.9974,2420.6,2420.4,0.82614]
[1750524446738,1.3008,2420.5,2420.2,0.645]
[1750524446927,3.89389171,2420.5,2420.3,0.82617]
[1750524447533,3.89389171,2420.5,2420.2,0.82619]
[1750524447732,1.3008,2420.4,2420.3,0.82618]
[1750524448839,1.3008,2420.4,2420.2,0.82619]
[1750524449152,1.3008,2420.4,2420.3,0.82618]
[1750524451647,1.3008,2420.4,2420.2,0.82619]
[1750524452346,1.3008,2420.4,2420.3,0.82618]
[1750524457551,0.6946,2420.6,2420.5,0.82611]
[1750524457752,1.9775,2420.6,2420.5,0.82611]
[1750524457949,0.6946,2420.6,2420.5,0.82611]
[1750524458152,9.8028,2420.7,2420.6,0.82607]
[1750524458354,6.595,2420.7,2420.6,0.82607]
[1750524458648,0.6813,2420.8,2420.7,0.82604]
[1750524459452,0.6813,2420.8,2420.6,0.82606]
[1750524459749,1.9989,2420.8,2420.6,0.82606]
[1750524460655,1.9989,2420.8,2420.5,0.82608]
[1750524461058,4.73675171,2420.7,2420.4,4.03393]
[1750524461251,1.3176,2420.6,2420.4,4.03393]
[1750524461449,1.3176,2420.6,2420.4,0.82613]
[1750524461649,0.6445,2420.5,2420.4,0.82613]
[1750524470053,0.6445,2420.5,2420.4,0.89460599]
[1750524472760,0.6445,2420.5,2420.4,0.89462599]
[1750524473161,0.6445,2420.5,2420.4,0.82615]
[1750524474063,0.6445,2420.5,2420.4,0.89462599]
[1750524474263,8.06533,2420.8,2420.6,0.82606]
[1750524474264,7.2393,2420.8,2420.6,0.82606]
[1750524474455,0.6991,2420.7,2420.6,0.82606]
[1750524474962,1.52517,2420.7,2420.5,0.82612]
[1750524475163,1.3296,2420.6,2420.5,0.82612]
[1750524476163,0.6991,2420.7,2420.6,0.82609]
[1750524477064,1.52516,2420.7,2420.5,0.8261]
[1750524477269,1.4118,2420.6,2420.5,0.8261]
[1750524477964,0.6991,2420.7,2420.6,0.82609]
[1750524478462,0.6991,2420.7,2420.5,0.82609]
[1750524478656,2.1109,2420.7,2420.5,0.82609]
[1750524479169,2.1109,2420.7,2420.4,3.92857599]
[1750524479170,2.1109,2420.7,2420.6,0.82608]
[1750524479868,2.1109,2420.7,2420.5,0.82609]
[1750524480369,1.3116,2420.6,2420.5,0.82609]
[1750524480569,0.82617,2420.4,2420.1,7.33772332]
[1750524480760,1.3116,2420.3,2420.1,4.03405]
[1750524481069,3.41931171,2420.2,2420.1,3.2078]
[1750524481259,4.11781171,2420.2,2420.1,3.2078]
[1750524481456,5.42941171,2420.2,2420.1,3.2078]
[1750524481665,5.42941171,2420.2,2419.9,0.82632]
[1750524482065,0.82627,2420.1,2419.9,0.82632]
[1750524482264,0.82627,2420.1,2419.8,7.99320332]
[1750524482868,0.82627,2420.1,2419.8,4.68953]
[1750524484164,0.82633,2419.9,2419.8,3.8632]
[1750524484371,3.2078,2420.3,2419.7,0.6877]
[1750524484372,0.82636,2419.8,2419.7,0.6877]
[1750524484668,0.8264,2419.7,2419.6,0.6553]
[1750524484859,0.82643,2419.6,2419.4,58.16228]
[1750524485058,0.82642,2419.7,2419.4,11.20658]
[1750524485261,1.49712,2419.7,2419.4,10.3801]
[1750524485565,1.49712,2419.7,2419.4,11.20658]
[1750524486063,5.80089171,2419.5,2418.9,4.13032332]
[1750524486270,0.82662,2419.1,2418.8,1.53559]
[1750524486963,2.59309171,2419.2,2418.8,0.7089]
[1750524487162,0.82673,2418.7,2418.6,3.2078]
[1750524487667,0.82683,2418.4,2418.3,3.2078]
[1750524489067,0.82694,2418.1,2417.9,10.4035]
[1750524489262,0.82693,2418.2,2417.9,11.2305]
[1750524489464,2.12248,2418.3,2417.9,11.2305]
[1750524489671,2.12248,2418.3,2418.0,0.82697]
[1750524489866,2.12248,2418.3,2417.9,10.4035]
[1750524489867,0.82691,2418.2,2417.9,11.23049]
[1750524490067,1.2956,2418.3,2418.0,0.82696]
[1750524490270,1.2956,2418.3,2418.1,0.82692]
[1750524490464,0.82682,2418.5,2418.1,0.82692]
[1750524490661,2.12242,2418.5,2418.1,0.82692]
[1750524491168,1.2956,2418.5,2418.3,0.82684]
[1750524491373,1.2956,2418.5,2418.1,2.59309171]
[1750524491374,0.8268,2418.5,2418.1,2.59309171]
[1750524491575,0.8268,2418.5,2418.1,3.42001171]
[1750524491973,0.8268,2418.5,2418.0,1.3014]
[1750524491974,0.82692,2418.2,2417.9,6.47759171]
[1750524492169,0.82689,2418.3,2418.0,0.82696]
[1750524492475,1.3541,2418.4,2417.9,6.47759171]
[1750524492869,2.18096,2418.4,2418.1,0.82694]
[1750524493571,0.82687,2418.3,2418.1,0.82694]
[1750524493773,2.18096,2418.4,2418.2,0.82691]
[1750524494277,3.8998,2418.6,2417.9,7.87609171]
[1750524494472,6.0807,2418.6,2418.3,0.82684]
[1750524494669,0.82681,2418.5,2418.3,0.82684]
[1750524494870,5.2539,2418.6,2417.9,9.94358171]
[1750524495074,6.08069,2418.6,2418.3,0.82684]
[1750524495372,6.08069,2418.6,2418.4,0.82683]
[1750524496367,2.87289,2418.6,2418.4,0.82683]
[1750524497275,0.82682,2418.5,2418.4,0.82683]
[1750524497582,0.692,2418.6,2418.5,0.82682]
[1750524498274,6.519,2418.7,2418.6,0.82678]
[1750524499873,7.8093,2418.7,2418.6,0.82678]
[1750524501681,33.27576,2419.0,2418.8,0.8267]
[1750524502186,32.4491,2419.0,2418.5,3.95627599]
[1750524502387,0.82669,2418.9,2418.7,0.82672]
[1750524502589,0.82669,2418.9,2418.5,3.95627599]
[1750524502781,0.82669,2418.9,2418.7,0.82673]
[1750524503177,0.82669,2418.9,2418.8,0.82671]
[1750524503483,33.27577,2419.0,2418.8,0.82671]
[1750524504286,7.1931,2419.0,2418.9,0.82668]
[1750524504482,4.71129,2419.2,2419.0,0.82665]
[1750524504681,3.8847,2419.2,2419.0,0.82665]
[1750524505087,3.8847,2419.2,2418.8,3.2078]
[1750524505088,3.8847,2419.2,2419.1,0.82661]
[1750524505287,3.2078,2419.2,2419.1,0.82661]
[1750524507984,4.03438,2419.2,2419.0,0.82663]
[1750524508386,2.59309171,2419.5,2419.0,0.82663]
[1750524508686,1.3897,2419.4,2419.0,0.82663]
[1750524508880,1.3897,2419.4,2419.1,0.82661]
[1750524509083,2.21622,2419.4,2419.2,0.82657]
[1750524509788,1.3897,2419.4,2418.9,2.0173]
[1750524509993,0.82656,2419.3,2419.1,0.82661]
[1750524510892,0.82658,2419.2,2419.0,0.82662]
[1750524511282,1.51607,2419.3,2419.1,0.82661]
[1750524514085,0.82658,2419.2,2419.1,0.82661]
[1750524514290,0.6895,2419.3,2419.1,0.82661]
[1750524514291,1.51607,2419.3,2419.1,0.82661]
[1750524514494,0.82658,2419.2,2419.1,0.82661]
[1750524515090,1.51607,2419.3,2419.1,0.82661]
[1750524515802,0.6895,2419.3,2419.2,0.82658]
[1750524516496,0.82658,2419.2,2419.1,0.06847599]
[1750524516900,2.24228,2419.2,2419.1,0.06847599]
[1750524517198,5.45008,2419.2,2419.1,0.06847599]
[1750524518093,2.90838,2419.2,2419.1,0.06847599]
[1750524519698,0.6661,2419.2,2419.1,0.89507599]
[1750524520400,1.49267,2419.2,2419.1,0.06847599]
[1750524520598,2.86497,2419.2,2419.1,0.06847599]
[1750524520797,6.07277,2419.2,2419.1,0.06847599]
[1750524523800,2.86497,2419.2,2419.1,0.06847599]
[1750524524005,2.0384,2419.2,2419.1,0.06847599]
[1750524524406,2.0384,2419.2,2419.1,0.89507599]
[1750524526602,8.66587171,2419.2,2419.1,0.06847599]
[1750524527501,9.75137141,2419.2,2419.1,0.06847599]
[1750524528597,8.66587171,2419.2,2419.1,0.06847599]
[1750524528802,9.75160039,2419.2,2419.1,0.06847599]
[1750524529204,38.8216221,2419.2,2418.5,3.2078]
[1750524529501,3.41988171,2418.6,2418.5,3.2078]
[1750524530601,4.76158171,2418.6,2418.5,3.2078]
[1750524530795,0.82685,2418.5,2418.3,0.82688]
[1750524530999,1.3417,2418.4,2418.3,0.82688]
[1750524532708,2.0396,2418.4,2418.3,0.82688]
[1750524533603,0.8269,2418.3,2418.1,3.2078]
[1750524533803,4.63269171,2418.4,2418.1,3.2078]
[1750524533804,5.45957171,2418.4,2418.2,0.82691]
[1750524534009,1.3047,2418.3,2418.2,0.82691]
[1750524534803,1.3047,2418.3,2418.1,3.2078]
[1750524535614,0.6979,2418.4,2418.1,4.03475]
[1750524535802,1.52476,2418.4,2418.1,4.03475]
[1750524538917,0.82689,2418.3,2418.1,4.03475]
[1750524539221,0.82689,2418.3,2418.1,3.2078]
[1750524540218,1.52478,2418.4,2418.1,4.03476]
[1750524541718,1.52478,2418.4,2418.2,0.82692]
[1750524542021,1.52478,2418.4,2418.1,4.03473]
[1750524542518,0.82689,2418.3,2418.1,4.03473]
[1750524543020,5.80089171,2418.3,2417.8,3.2078]
[1750524543223,0.82702,2417.9,2417.8,3.2078]
[1750524545212,1.4839,2418.0,2417.8,3.2078]
[1750524545516,0.82702,2417.9,2417.8,3.2078]
[1750524549822,0.82737,2416.9,2416.8,3.30367332]
[1750524550025,12.32489171,2416.9,2416.4,3.2078]
[1750524550223,0.82748,2416.6,2416.4,3.2078]
[1750524550524,0.82746,2416.7,2416.4,3.2078]
[1750524551123,2.59309171,2416.5,2415.7,3.2078]
[1750524551325,0.82769,2416.0,2415.7,3.2078]
[1750524552228,3.42074171,2416.1,2415.7,3.2078]
[1750524552420,4.81484171,2416.1,2415.7,3.2078]
[1750524552626,0.82768,2416.0,2415.7,3.2078]
[1750524552821,4.81485171,2416.1,2415.7,3.2078]
[1750524553027,4.81483171,2416.1,2415.7,3.2078]
[1750524553328,4.81483171,2416.1,2415.7,4.03557]
[1750524553723,4.03538,2416.3,2415.8,2.59309171]
[1750524554025,4.03538,2416.3,2415.9,0.82769]
[1750524554217,3.2078,2416.3,2415.9,1.3399]
[1750524554416,9.11809171,2416.4,2415.7,3.2078]
[1750524554618,0.82769,2416.0,2415.7,3.876]
[1750524554826,0.82766,2416.1,2415.7,3.876]
[1750524555018,0.82765,2416.1,2415.7,3.876]
[1750524555223,0.82765,2416.1,2415.7,4.70377]
[1750524555729,0.82765,2416.1,2415.7,3.876]
[1750524555917,0.6471,2416.2,2415.7,3.876]
[1750524555918,1.47472,2416.2,2415.7,4.70377]
[1750524556118,1.47472,2416.2,2415.7,3.876]
[1750524556323,0.82766,2416.1,2415.7,3.876]
[1750524556723,0.82767,2416.0,2415.7,3.876]
[1750524557123,2.13055,2416.1,2415.7,4.70377]
[1750524557327,6.527,2416.4,2416.0,3.2078]
[1750524557519,3.2078,2416.3,2415.7,3.876]
[1750524557733,0.82761,2416.2,2415.7,3.876]
[1750524557932,2.13051,2416.2,2415.8,0.82774]
[1750524558227,1.3029,2416.2,2415.9,0.82771]
[1750524558529,3.2078,2416.3,2416.0,0.82765]
[1750524558933,3.2078,2416.3,2415.8,1.391]
[1750524559127,3.2078,2416.0,2415.4,3.2078]
[1750524559336,0.82764,2416.1,2415.8,0.89621599]
[1750524559833,0.82764,2416.1,2415.8,0.06847599]
[1750524560332,0.82768,2416.0,2415.8,0.06847599]
[1750524560532,0.82765,2416.1,2415.8,0.89621599]
[1750524560732,0.82765,2416.1,2415.8,0.06847599]
[1750524561332,0.82763,2416.2,2415.8,0.89621599]
[1750524561532,2.12163,2416.2,2415.8,0.89621599]
[1750524561931,0.82771,2415.9,2415.8,0.06847599]
[1750524562328,2.15921,2415.9,2415.8,0.06847599]
[1750524565636,0.82771,2415.9,2415.8,0.06847599]
[1750524565931,0.82768,2416.0,2415.8,0.06847599]
[1750524566132,7.2346,2416.1,2415.8,0.06847599]
[1750524566327,0.82769,2416.0,2415.8,0.06847599]
[1750524567832,11.4576038,2415.9,2415.1,3.2078]
[1750524568026,0.82782,2415.6,2415.2,2.16992]
[1750524568230,0.82782,2415.6,2415.2,3.59542]
[1750524568435,4.03559,2415.7,2415.3,0.82791]
[1750524568636,0.82779,2415.7,2415.3,0.82791]
[1750524568934,8.5762,2415.9,2415.4,3.2078]
[1750524569239,0.82779,2415.7,2415.3,0.82789]
[1750524569834,0.82777,2415.8,2415.4,0.82788]
[1750524570143,0.82778,2415.7,2415.4,0.82788]
[1750524570332,0.82775,2415.8,2415.5,0.82784]
[1750524570733,13.4348038,2415.9,2415.1,9.8068]
[1750524570938,0.82787,2415.5,2415.2,0.82794]
[1750524571140,0.82787,2415.5,2415.1,11.98776]
[1750524571333,0.8279,2415.4,2415.1,4.5608]
[1750524571534,0.82795,2415.2,2415.1,3.2078]
[1750524572137,1.47915,2415.2,2415.1,3.2078]
[1750524573041,0.6512,2415.2,2415.1,3.2078]
[1750524573941,5.27731,2415.7,2415.1,3.2078]
[1750524573942,3.2078,2415.7,2415.1,3.2078]
[1750524574142,3.2078,2415.7,2415.2,0.82793]
[1750524574143,1.50152,2415.6,2415.2,0.82793]
[1750524574343,1.9752,2415.6,2415.3,0.8279]
[1750524574540,2.80303,2415.6,2415.2,0.82793]
[1750524574742,1.9752,2415.6,2415.1,3.27627599]
[1750524574945,0.6737,2415.6,2415.1,3.27627599]
[1750524575247,9.8078,2415.7,2415.5,0.82783]
[1750524575449,3.2078,2415.7,2415.5,0.82783]
[1750524576345,8.10145,2415.8,2415.5,0.82783]
[1750524576547,0.82778,2415.7,2415.4,0.82786]
[1750524576743,9.40297,2415.8,2415.5,0.82784]